fUSD/lending_fUSD_20250616
["ID","MTS","AMOUNT","RATE_DAILY","PERIOD"]
[366155721,1750090246263,-700.0,0.00016164,2]
[366155723,1750090246274,-150.0,0.00016167,2]
[366155725,1750090246283,-163.75480245,0.00016173,2]
[366155727,1750090246293,-500.0,0.00016173,2]
[366155729,1750090246302,-500.0,0.00016173,2]
[366155731,1750090246312,-500.0,0.00016173,2]
[366155733,1750090246322,-500.0,0.00016173,2]
[366155735,1750090246332,-359.12499857,0.00016173,2]
[366155737,1750090246342,-500.0,0.00016173,2]
[366155739,1750090246352,-304.95,0.00016178,2]
[366155741,1750090246362,-168.74685397,0.0001618,2]
[366155743,1750090246371,-150.0,0.00016188,2]
[366155745,1750090246381,-150.0,0.00016188,2]
[366155747,1750090246391,-150.0,0.00016188,2]
[366155749,1750090246400,-150.0,0.00016188,2]
[366155751,1750090246410,-150.0,0.00016188,2]
[366155753,1750090246420,-150.0,0.00016188,2]
[366155756,1750090246430,-500.0,0.00016188,2]
[366155758,1750090246440,-500.0,0.00016188,2]
[366155760,1750090246450,-150.0,0.00016188,2]
[366155762,1750090246460,-150.0,0.00016188,2]
[366155764,1750090246469,-150.0,0.00016188,2]
[366155766,1750090246480,-150.0,0.00016188,2]
[366155768,1750090246490,-150.0,0.00016188,2]
[366155770,1750090246499,-150.0,0.00016188,2]
[366155772,1750090246509,-150.0,0.00016188,2]
[366155774,1750090246519,-150.0,0.00016188,2]
[366155777,1750090246530,-150.0,0.00016188,2]
[366155779,1750090246541,-150.0,0.00016188,2]
[366155781,1750090246552,-150.96623907,0.00016188,2]
[366155783,1750090246561,-500.0,0.00016188,2]
[366155785,1750090246571,-150.0,0.00016188,2]
[366155787,1750090246581,-286.44216813,0.00016188,2]
[366155789,1750090246591,-500.0,0.00016188,2]
[366155791,1750090246601,-500.0,0.00016188,2]
[366155793,1750090246611,-150.0,0.00016188,2]
[366155795,1750090246620,-150.0,0.00016188,2]
[366155797,1750090246631,-3772.48,0.0001619,2]
[366155799,1750090246640,-600.0,0.00016193,2]
[366155801,1750090246650,-152.83855811,0.00016195,2]
[366155804,1750090246660,-202.0,0.00016199,3]
[366155806,1750090246670,-1390.0,0.00016211,2]
[366155808,1750090246679,-291.0,0.00016211,2]
[366155810,1750090246689,-150.0,0.00016212,2]
[366155812,1750090246698,-314.0,0.00016213,2]
[366155814,1750090246707,-499.31,0.00016214,2]
[366155816,1750090246718,-502.87,0.00016214,2]
[366155818,1750090246727,-494.05,0.00016214,2]
[366155820,1750090246736,-151.0,0.00016215,2]
[366155822,1750090246746,-8260.13072239,0.00016215,2]
[366155824,1750090246756,-150.0,0.00016216,2]
[366155826,1750090246766,-150.0,0.00016216,2]
[366155828,1750090246778,-152.05656481,0.00016216,2]
[366155830,1750090246787,-150.0,0.00016216,2]
[366155832,1750090246797,-300.0,0.00016216,2]
[366155835,1750090246807,-450.0,0.00016216,2]
[366155837,1750090246817,-150.0,0.00016216,2]
[366155839,1750090246826,-150.0,0.00016216,2]
[366155841,1750090246836,-150.0,0.00016216,2]
[366155843,1750090246845,-150.0,0.00016216,2]
[366155845,1750090246856,-150.0,0.00016216,2]
[366155847,1750090246867,-150.0,0.00016216,2]
[366155849,1750090246876,-150.0,0.00016216,2]
[366155851,1750090246886,-150.0,0.00016216,2]
[366155853,1750090246896,-500.0,0.00016216,2]
[366155855,1750090246906,-150.0,0.00016216,2]
[366155857,1750090246916,-400.0,0.00016216,2]
[366155859,1750090246925,-300.0,0.00016216,2]
[366155861,1750090246935,-150.0,0.00016216,2]
[366155863,1750090246944,-150.0,0.00016218,2]
[366155865,1750090246954,-168.0,0.00016221,2]
[366155868,1750090246965,-165.6608112,0.00016224,2]
[366155870,1750090246975,-173.68636095,0.00016224,2]
[366155872,1750090246986,-11063.95586755,0.00016224,2]
[366155874,1750090246995,-500.0,0.00016225,2]
[366155876,1750090247005,-36110.6215,0.00016225,2]
[366155878,1750090247015,-64510.4102,0.00016225,2]
[366155880,1750090247025,-11317.44,0.0001623,2]
[366155882,1750090247035,-465.44718746,0.00016238,2]
[366155884,1750090247045,-150.0,0.00016243,2]
[366155886,1750090247056,-201.31927875,0.00016243,2]
[366155888,1750090247066,-202.07311355,0.00016243,2]
[366155890,1750090247076,-200.0,0.00016243,2]
[366155892,1750090247086,-150.0,0.00016243,2]
[366155894,1750090247097,-150.0,0.00016243,2]
[366155896,1750090247107,-150.0,0.00016243,2]
[366155898,1750090247117,-150.0,0.00016243,2]
[366155900,1750090247127,-150.0,0.00016243,2]
[366155901,1750090247137,-205.3326371,0.00016243,2]
[366155902,1750090247149,-150.0,0.00016243,2]
[366155903,1750090247159,-150.0,0.00016252,2]
[366155904,1750090247169,-1000.0,0.00016257,2]
[366155905,1750090247180,-150.0,0.00016269,2]
[366155906,1750090247191,-262.07615835,0.0001627,2]
[366155907,1750090247201,-7431.18637023,0.0001627,2]
[366155908,1750090247211,-3772.48,0.0001627,2]
[366155909,1750090247222,-251.47347771,0.00016271,2]
[366155911,1750090247234,-255.0,0.00016271,2]
[366155913,1750090247244,-281.55931939,0.00016271,2]
[366155915,1750090247254,-150.0,0.00016274,2]
[366155917,1750090247264,-306.0,0.00016291,2]
[366155919,1750090247275,-1000.0,0.000163,2]
[366155921,1750090247286,-168.74685397,0.000163,2]
[366155923,1750090247296,-150.0,0.00016302,2]
[366155925,1750090247306,-150.0,0.00016304,2]
[366155927,1750090247316,-150.0,0.00016304,2]
[366155929,1750090247326,-11063.95586755,0.00016307,2]
[366155931,1750090247336,-21753.9855339,0.00016316,2]
[366155933,1750090247346,-1100.9637189,0.00016316,2]
[366155935,1750090247356,-200.0,0.00016322,2]
[366155937,1750090247365,-200.0,0.00016322,2]
[366155940,1750090247376,-726.37,0.00016323,2]
[366155942,1750090247386,-490.0,0.00016323,2]
[366155944,1750090247395,-628.73,0.00016323,2]
[366155946,1750090247406,-1083.92,0.00016323,2]
[366155948,1750090247416,-1091.61,0.00016323,2]
[366155950,1750090247426,-1167.5,0.00016323,2]
[366155952,1750090247436,-490.0,0.00016323,2]
[366155954,1750090247447,-686.45,0.00016323,2]
[366155956,1750090247457,-603.23,0.00016323,2]
[366155958,1750090247466,-667.24,0.00016323,2]
[366155960,1750090247476,-636.78,0.00016323,2]
[366155962,1750090247486,-3942.71,0.00016323,2]
[366155964,1750090247496,-490.0,0.00016323,2]
[366155965,1750090247505,-549.93,0.00016323,2]
[366155966,1750090247514,-490.0,0.00016323,2]
[366155967,1750090247524,-913.62,0.00016323,2]
[366155968,1750090247533,-3879.56,0.00016323,2]
[366155969,1750090247543,-2088.96,0.00016323,2]
[366155970,1750090247553,-490.0,0.00016323,2]
[366155971,1750090247563,-669.25,0.00016323,2]
[366155972,1750090247573,-832.5,0.00016323,2]
[366155973,1750090247583,-739.89,0.00016323,2]
[366155974,1750090247596,-571.41,0.00016323,2]
[366155976,1750090247606,-767.72,0.00016323,2]
[366155977,1750090247616,-767.72,0.00016323,2]
[366155978,1750090247626,-645.3,0.00016323,2]
[366155979,1750090247636,-985.290263,0.00016323,2]
[366155980,1750090247647,-974.0,0.00016323,2]
[366155981,1750090247656,-490.0,0.00016323,2]
[366155982,1750090247666,-816.03,0.00016323,2]
[366155983,1750090247676,-548.6,0.00016323,2]
[366155984,1750090247686,-521.87,0.00016323,2]
[366155985,1750090247696,-490.0,0.00016324,2]
[366155986,1750090247706,-490.0,0.00016324,2]
[366155987,1750090247715,-490.0,0.00016324,2]
[366155988,1750090247725,-450.0,0.00016324,2]
[366155989,1750090247735,-568.26,0.00016324,2]
[366155990,1750090247745,-490.0,0.00016324,2]
[366155992,1750090247756,-490.0,0.00016324,2]
[366155994,1750090247765,-490.0,0.00016324,2]
[366155996,1750090247777,-490.0,0.00016324,2]
[366155999,1750090247801,-699.59,0.00016324,2]
[366156001,1750090247813,-490.0,0.00016324,2]
[366156003,1750090247824,-490.0,0.00016324,2]
[366156006,1750090247836,-490.0,0.00016324,2]
[366156008,1750090247847,-490.0,0.00016324,2]
[366156010,1750090247857,-764.03,0.00016324,2]
[366156012,1750090247868,-490.0,0.00016324,2]
[366156014,1750090247879,-490.0,0.00016324,2]
[366156016,1750090247889,-842.46,0.00016324,2]
[366156018,1750090247899,-490.0,0.00016324,2]
[366156020,1750090247910,-490.0,0.00016324,2]
[366156021,1750090247920,-490.0,0.00016324,2]
[366156022,1750090247931,-961.3,0.00016324,2]
[366156023,1750090247941,-589.84,0.00016324,2]
[366156024,1750090247951,-589.13,0.00016324,2]
[366156025,1750090247961,-490.0,0.00016324,2]
[366156026,1750090247972,-490.0,0.00016324,2]
[366156027,1750090247983,-581.46,0.00016324,2]
[366156028,1750090247993,-250.0,0.00016324,2]
[366156029,1750090248003,-490.0,0.00016324,2]
[366156030,1750090248014,-490.0,0.00016324,2]
[366156031,1750090248025,-490.0,0.00016324,2]
[366156032,1750090248035,-714.15,0.00016324,2]
[366156033,1750090248046,-639.42,0.00016324,2]
[366156034,1750090248056,-490.0,0.00016324,2]
[366156035,1750090248067,-490.0,0.00016324,2]
[366156036,1750090248079,-601.59,0.00016324,2]
[366156037,1750090248090,-490.0,0.00016324,2]
[366156038,1750090248101,-490.0,0.00016324,2]
[366156039,1750090248111,-490.0,0.00016324,2]
[366156040,1750090248122,-670.62,0.00016324,2]
[366156041,1750090248132,-490.0,0.00016324,2]
[366156042,1750090248144,-490.0,0.00016324,2]
[366156043,1750090248157,-694.7,0.00016324,2]
[366156044,1750090248168,-490.0,0.00016324,2]
[366156045,1750090248179,-490.0,0.00016324,2]
[366156046,1750090248190,-490.0,0.00016324,2]
[366156047,1750090248200,-490.0,0.00016324,2]
[366156048,1750090248211,-490.0,0.00016324,2]
[366156049,1750090248222,-490.0,0.00016324,2]
[366156050,1750090248234,-490.0,0.00016324,2]
[366156051,1750090248252,-490.0,0.00016324,2]
[366156052,1750090248263,-490.0,0.00016324,2]
[366156053,1750090248275,-490.0,0.00016324,2]
[366156054,1750090248286,-490.0,0.00016324,2]
[366156055,1750090248297,-490.0,0.00016324,2]
[366156056,1750090248310,-619.07,0.00016324,2]
[366156057,1750090248322,-490.0,0.00016324,2]
[366156058,1750090248334,-607.7,0.00016324,2]
[366156059,1750090248345,-1194.12,0.00016324,2]
[366156060,1750090248356,-526.26,0.00016324,2]
[366156061,1750090248367,-490.0,0.00016324,2]
[366156062,1750090248378,-490.0,0.00016324,2]
[366156063,1750090248388,-490.0,0.00016324,2]
[366156064,1750090248398,-490.0,0.00016324,2]
[366156065,1750090248409,-610.62,0.00016324,2]
[366156066,1750090248419,-532.16,0.00016324,2]
[366156067,1750090248430,-490.0,0.00016324,2]
[366156068,1750090248440,-490.0,0.00016324,2]
[366156069,1750090248451,-490.0,0.00016324,2]
[366156070,1750090248633,-686.54,0.00016324,2]
[366156071,1750090248644,-490.0,0.00016324,2]
[366156072,1750090248654,-490.0,0.00016324,2]
[366156073,1750090248664,-540.54,0.00016324,2]
[366156074,1750090248675,-490.0,0.00016324,2]
[366156075,1750090248685,-490.0,0.00016324,2]
[366156076,1750090248695,-601.38,0.00016324,2]
[366156077,1750090248705,-671.15,0.00016324,2]
[366156078,1750090248715,-490.0,0.00016324,2]
[366156079,1750090248725,-490.0,0.00016324,2]
[366156080,1750090248735,-806.1,0.00016324,2]
[366156081,1750090248746,-667.73,0.00016324,2]
[366156082,1750090248757,-490.0,0.00016324,2]
[366156083,1750090248767,-490.0,0.00016324,2]
[366156084,1750090248778,-490.0,0.00016324,2]
[366156085,1750090248788,-190.05,0.00016324,2]
[366156086,1750090248798,-490.0,0.00016324,2]
[366156087,1750090248809,-490.0,0.00016324,2]
[366156088,1750090248819,-490.0,0.00016324,2]
[366156089,1750090248828,-490.0,0.00016324,2]
[366156090,1750090248839,-692.75,0.00016324,2]
[366156091,1750090248849,-490.0,0.00016324,2]
[366156092,1750090248859,-490.0,0.00016324,2]
[366156093,1750090248870,-490.0,0.00016324,2]
[366156094,1750090248880,-490.0,0.00016324,2]
[366156095,1750090248890,-490.0,0.00016324,2]
[366156096,1750090248900,-1467.36,0.00016324,2]
[366156097,1750090248910,-490.0,0.00016324,2]
[366156098,1750090248921,-601.8,0.00016324,2]
[366156099,1750090248932,-490.0,0.00016324,2]
[366156100,1750090248943,-584.86,0.00016324,2]
[366156101,1750090248954,-1061.36,0.00016324,2]
[366156102,1750090248964,-1068.95,0.00016324,2]
[366156103,1750090248973,-151.0,0.00016324,2]
[366156104,1750090248983,-490.0,0.00016324,2]
[366156105,1750090248994,-490.0,0.00016324,2]
[366156106,1750090249004,-490.0,0.00016324,2]
[366156107,1750090249014,-490.0,0.00016324,2]
[366156108,1750090249024,-490.0,0.00016324,2]
[366156109,1750090249035,-722.64,0.00016324,2]
[366156110,1750090249044,-490.0,0.00016324,2]
[366156111,1750090249055,-280.17,0.00016324,2]
[366156112,1750090249065,-490.0,0.00016324,2]
[366156113,1750090249080,-490.0,0.00016324,2]
[366156114,1750090249091,-1664.73,0.00016324,2]
[366156115,1750090249101,-490.0,0.00016324,2]
[366156116,1750090249111,-490.0,0.00016324,2]
[366156117,1750090249122,-502.20515958,0.00016324,2]
[366156118,1750090249132,-490.0,0.00016324,2]
[366156119,1750090249143,-569.73,0.00016324,2]
[366156120,1750090249157,-490.0,0.00016324,2]
[366156121,1750090249167,-833.31,0.00016324,2]
[366156122,1750090249178,-490.0,0.00016324,2]
[366156123,1750090249190,-490.0,0.00016324,2]
[366156124,1750090249200,-490.0,0.00016324,2]
[366156125,1750090249210,-490.0,0.00016324,2]
[366156126,1750090249220,-490.0,0.00016324,2]
[366156127,1750090249232,-599.53,0.00016324,2]
[366156128,1750090249242,-1474.5,0.00016324,2]
[366156129,1750090249252,-490.0,0.00016324,2]
[366156130,1750090249262,-490.0,0.00016324,2]
[366156131,1750090249273,-821.41,0.00016324,2]
[366156132,1750090249283,-568.28,0.00016324,2]
[366156133,1750090249293,-490.0,0.00016324,2]
[366156134,1750090249304,-846.89,0.00016324,2]
[366156135,1750090249314,-490.0,0.00016324,2]
[366156136,1750090249325,-490.0,0.00016324,2]
[366156137,1750090249336,-490.0,0.00016324,2]
[366156138,1750090249346,-902.48,0.00016324,2]
[366156139,1750090249355,-962.8,0.00016324,2]
[366156140,1750090249366,-490.0,0.00016324,2]
[366156141,1750090249377,-266.58323733,0.00016324,2]
[366156142,1750090249387,-490.0,0.00016324,2]
[366156143,1750090249398,-490.0,0.00016324,2]
[366156144,1750090249407,-1357.98,0.00016324,2]
[366156145,1750090249417,-1217.84,0.00016324,2]
[366156146,1750090249427,-490.0,0.00016324,2]
[366156147,1750090249437,-490.0,0.00016324,2]
[366156148,1750090249448,-954.02,0.00016324,2]
[366156149,1750090249457,-490.0,0.00016324,2]
[366156150,1750090249467,-908.24,0.00016324,2]
[366156151,1750090249477,-490.0,0.00016324,2]
[366156152,1750090249487,-720.5,0.00016324,2]
[366156153,1750090249497,-490.0,0.00016324,2]
[366156154,1750090249507,-552.71,0.00016324,2]
[366156155,1750090249517,-504.93,0.00016324,2]
[366156156,1750090249528,-904.02,0.00016324,2]
[366156157,1750090249538,-864.01,0.00016324,2]
[366156158,1750090249548,-490.0,0.00016324,2]
[366156159,1750090249558,-490.0,0.00016324,2]
[366156160,1750090249568,-490.0,0.00016324,2]
[366156161,1750090249578,-490.0,0.00016324,2]
[366156162,1750090249587,-490.0,0.00016324,2]
[366156163,1750090249598,-490.0,0.00016324,2]
[366156164,1750090249608,-687.61,0.00016324,2]
[366156165,1750090249618,-1222.28,0.00016324,2]
[366156166,1750090249628,-830.25,0.00016324,2]
[366156167,1750090249638,-490.0,0.00016324,2]
[366156168,1750090249649,-619.52,0.00016324,2]
[366156169,1750090249659,-490.0,0.00016324,2]
[366156170,1750090249669,-1166.2,0.00016324,2]
[366156171,1750090249679,-1476.5,0.00016324,2]
[366156172,1750090249689,-1187.61,0.00016324,2]
[366156173,1750090249699,-872.09,0.00016324,2]
[366156174,1750090249709,-490.0,0.00016324,2]
[366156175,1750090249719,-502.25,0.00016324,2]
[366156176,1750090249728,-490.0,0.00016324,2]
[366156177,1750090249738,-490.0,0.00016324,2]
[366156178,1750090249748,-1227.1,0.00016324,2]
[366156179,1750090249758,-490.0,0.00016324,2]
[366156180,1750090249768,-490.0,0.00016324,2]
[366156181,1750090249778,-490.0,0.00016324,2]
[366156182,1750090249788,-490.0,0.00016324,2]
[366156183,1750090249799,-648.55,0.00016324,2]
[366156184,1750090249809,-595.46,0.00016324,2]
[366156185,1750090249819,-490.0,0.00016324,2]
[366156186,1750090249830,-490.0,0.00016324,2]
[366156187,1750090249840,-490.0,0.00016324,2]
[366156188,1750090249850,-490.0,0.00016324,2]
[366156189,1750090249861,-901.57,0.00016324,2]
[366156190,1750090249871,-490.0,0.00016324,2]
[366156191,1750090249881,-622.97,0.00016324,2]
[366156192,1750090249891,-490.0,0.00016324,2]
[366156193,1750090249901,-490.0,0.00016324,2]
[366156194,1750090249910,-490.0,0.00016324,2]
[366156195,1750090249920,-652.68,0.00016324,2]
[366156196,1750090249930,-490.0,0.00016324,2]
[366156197,1750090249941,-490.0,0.00016324,2]
[366156198,1750090249950,-764.04,0.00016324,2]
[366156199,1750090249960,-490.0,0.00016324,2]
[366156200,1750090249970,-490.0,0.00016324,2]
[366156201,1750090249980,-2217.4,0.00016324,2]
[366156202,1750090249991,-490.0,0.00016324,2]
[366156203,1750090250001,-433.28446926,0.00016324,2]
[366156204,1750090250011,-852.79,0.00016324,2]
[366156205,1750090250023,-490.0,0.00016324,2]
[366156206,1750090250032,-681.98,0.00016324,2]
[366156207,1750090250041,-701.85,0.00016324,2]
[366156208,1750090250051,-961.65,0.00016324,2]
[366156209,1750090250061,-1111.49,0.00016324,2]
[366156210,1750090250071,-490.0,0.00016324,2]
[366156211,1750090250081,-490.0,0.00016324,2]
[366156212,1750090250091,-490.0,0.00016324,2]
[366156213,1750090250101,-773.05,0.00016324,2]
[366156214,1750090250110,-490.0,0.00016324,2]
[366156215,1750090250120,-490.0,0.00016324,2]
[366156216,1750090250130,-490.0,0.00016324,2]
[366156217,1750090250141,-579.466708,0.00016324,2]
[366156218,1750090250155,-490.0,0.00016324,2]
[366156219,1750090250165,-490.0,0.00016324,2]
[366156220,1750090250175,-521.51,0.00016324,2]
[366156221,1750090250186,-1728.93,0.00016324,2]
[366156222,1750090250197,-490.0,0.00016324,2]
[366156223,1750090250208,-724.59,0.00016324,2]
[366156224,1750090250218,-490.63015549,0.00016324,2]
[366156225,1750090250230,-490.0,0.00016324,2]
[366156226,1750090250241,-490.0,0.00016324,2]
[366156227,1750090250251,-490.0,0.00016324,2]
[366156228,1750090250262,-648.04,0.00016324,2]
[366156229,1750090250273,-795.74,0.00016324,2]
[366156230,1750090250283,-550.06,0.00016324,2]
[366156231,1750090250293,-1340.6,0.00016324,2]
[366156232,1750090250303,-649.5,0.00016324,2]
[366156233,1750090250314,-494.99706906,0.00016324,2]
[366156234,1750090250325,-490.0,0.00016324,2]
[366156235,1750090250336,-490.0,0.00016324,2]
[366156236,1750090250346,-490.0,0.00016324,2]
[366156237,1750090250357,-2394.04,0.00016324,2]
[366156238,1750090250367,-490.0,0.00016324,2]
[366156239,1750090250378,-1222.08,0.00016324,2]
[366156240,1750090250388,-1680.15,0.00016324,2]
[366156241,1750090250399,-2171.12,0.00016324,2]
[366156242,1750090250409,-603.42611066,0.00016324,2]
[366156243,1750090250419,-490.0,0.00016324,2]
[366156244,1750090250429,-490.0,0.00016324,2]
[366156245,1750090250439,-490.0,0.00016324,2]
[366156246,1750090250448,-845.31,0.00016324,2]
[366156247,1750090250459,-490.0,0.00016324,2]
[366156248,1750090250468,-2509.12,0.00016324,2]
[366156249,1750090250478,-490.0,0.00016324,2]
[366156250,1750090250487,-815.14,0.00016324,2]
[366156251,1750090250497,-4407.04,0.00016324,2]
[366156252,1750090250506,-1072.04,0.00016324,2]
[366156253,1750090250516,-682.51,0.00016324,2]
[366156254,1750090250526,-490.0,0.00016324,2]
[366156255,1750090250537,-490.0,0.00016324,2]
[366156256,1750090250547,-12579.44,0.00016324,2]
[366156257,1750090250556,-544.33,0.00016324,2]
[366156258,1750090250567,-846.85,0.00016324,2]
[366156259,1750090250577,-516.66,0.00016324,2]
[366156260,1750090250587,-2223.07,0.00016324,2]
[366156261,1750090250597,-954.89,0.00016324,2]
[366156262,1750090250607,-4715.76,0.00016324,2]
[366156263,1750090250617,-469.55514645,0.00016324,2]
[366156264,1750090250627,-729.86,0.00016324,2]
[366156265,1750090250637,-1735.66,0.00016324,2]
[366156266,1750090250646,-1181.84,0.00016324,2]
[366156267,1750090250656,-2156.01,0.00016324,2]
[366156268,1750090250665,-1631.55,0.00016324,2]
[366156269,1750090250675,-247.56003197,0.00016324,2]
[366156270,1750090250684,-490.0,0.00016324,2]
[366156271,1750090250693,-490.0,0.00016324,2]
[366156272,1750090250702,-1105.41,0.00016324,2]
[366156273,1750090250712,-797.6,0.00016324,2]
[366156274,1750090250721,-490.0,0.00016324,2]
[366156275,1750090250731,-490.0,0.00016324,2]
[366156276,1750090250740,-490.0,0.00016324,2]
[366156277,1750090250750,-649.85,0.00016324,2]
[366156278,1750090250759,-1361.89,0.00016324,2]
[366156279,1750090250768,-490.0,0.00016324,2]
[366156280,1750090250779,-2600.44,0.00016324,2]
[366156281,1750090250790,-1001.33,0.00016324,2]
[366156282,1750090250799,-760.15,0.00016324,2]
[366156283,1750090250809,-3286.84,0.00016324,2]
[366156284,1750090250819,-840.85,0.00016324,2]
[366156285,1750090250829,-490.0,0.00016324,2]
[366156286,1750090250840,-6299.02,0.00016324,2]
[366156287,1750090250850,-635.46443787,0.00016324,2]
[366156288,1750090250860,-888.04,0.00016324,2]
[366156289,1750090250870,-1133.38,0.00016324,2]
[366156290,1750090250880,-1055.66,0.00016324,2]
[366156291,1750090250890,-3361.78,0.00016324,2]
[366156292,1750090250900,-1284.99,0.00016324,2]
[366156293,1750090250910,-931.33,0.00016324,2]
[366156294,1750090250919,-4787.2,0.00016324,2]
[366156295,1750090250929,-9779.82,0.00016324,2]
[366156296,1750090250939,-846.25,0.00016324,2]
[366156297,1750090250948,-666.31,0.00016324,2]
[366156298,1750090250957,-490.0,0.00016324,2]
[366156299,1750090250967,-490.0,0.00016324,2]
[366156300,1750090250976,-1575.89,0.00016324,2]
[366156301,1750090250986,-1250.23,0.00016324,2]
[366156302,1750090250996,-2418.34,0.00016324,2]
[366156303,1750090251006,-2428.95,0.00016324,2]
[366156304,1750090251016,-490.0,0.00016324,2]
[366156305,1750090251025,-490.0,0.00016324,2]
[366156306,1750090251035,-598.51,0.00016324,2]
[366156307,1750090251046,-1229.35,0.00016324,2]
[366156308,1750090251055,-790.13,0.00016324,2]
[366156309,1750090251065,-490.0,0.00016324,2]
[366156310,1750090251075,-490.0,0.00016324,2]
[366156311,1750090251085,-490.0,0.00016324,2]
[366156312,1750090251095,-989.16,0.00016324,2]
[366156313,1750090251104,-1308.86,0.00016324,2]
[366156314,1750090251114,-1145.65,0.00016324,2]
[366156315,1750090251125,-490.0,0.00016324,2]
[366156316,1750090251134,-3387.41,0.00016324,2]
[366156317,1750090251146,-674.48,0.00016324,2]
[366156318,1750090251156,-1264.22,0.00016324,2]
[366156319,1750090251167,-490.0,0.00016324,2]
[366156320,1750090251177,-789.79,0.00016324,2]
[366156321,1750090251187,-490.0,0.00016324,2]
[366156322,1750090251197,-490.0,0.00016324,2]
[366156323,1750090251206,-1178.94,0.00016324,2]
[366156324,1750090251216,-2139.81,0.00016324,2]
[366156325,1750090251227,-1654.76,0.00016324,2]
[366156326,1750090251236,-490.0,0.00016324,2]
[366156327,1750090251246,-490.0,0.00016324,2]
[366156328,1750090251255,-1092.03,0.00016324,2]
[366156329,1750090251265,-490.0,0.00016324,2]
[366156330,1750090251275,-490.0,0.00016324,2]
[366156331,1750090251284,-1330.62,0.00016324,2]
[366156332,1750090251294,-1037.94,0.00016324,2]
[366156333,1750090251303,-490.0,0.00016324,2]
[366156334,1750090251312,-1099.71,0.00016324,2]
[366156335,1750090251322,-776.37,0.00016324,2]
[366156336,1750090251333,-759.84,0.00016324,2]
[366156337,1750090251342,-490.0,0.00016324,2]
[366156338,1750090251351,-490.0,0.00016324,2]
[366156339,1750090251360,-739.34,0.00016324,2]
[366156340,1750090251371,-1291.75,0.00016324,2]
[366156341,1750090251380,-551.27,0.00016324,2]
[366156342,1750090251389,-1426.85,0.00016324,2]
[366156343,1750090251399,-3808.21,0.00016324,2]
[366156344,1750090251408,-490.0,0.00016324,2]
[366156345,1750090251417,-490.0,0.00016324,2]
[366156346,1750090251427,-490.0,0.00016324,2]
[366156347,1750090251437,-490.0,0.00016324,2]
[366156348,1750090251447,-989.54,0.00016324,2]
[366156349,1750090251456,-952.69,0.00016324,2]
[366156350,1750090251466,-640.36,0.00016324,2]
[366156351,1750090251475,-490.0,0.00016324,2]
[366156352,1750090251484,-573.26,0.00016324,2]
[366156353,1750090251494,-856.11,0.00016324,2]
[366156354,1750090251503,-12186.65,0.00016324,2]
[366156355,1750090251513,-490.0,0.00016324,2]
[366156356,1750090251523,-1901.05,0.00016324,2]
[366156357,1750090251532,-524.42,0.00016324,2]